Workbook

Sheet паспорт
A1: ПАТ "УКРТРАНСГАЗ" | G1: ПАСПОРТ ФІЗИКО-ХІМІЧНИХ ПОКАЗНИКІВ ПРИРОДНОГО ГАЗУ №95
A2: Філія "УМГ "Київтрансгаз" | G2: переданогоДиканським ЛВУМГ та прийнятого ПАТ "Полтавагаз"
A3: Диканський п/м Диканське ЛВУМГ | G3: Маршрут №95
A4: Вимірювальна хіміко-аналітична лабораторія
A5: Свідоцтво № 186-13 чинне до 05.12.2018 р. | K5: по газопроводу "ЄФРЕМІВКА - ДИКАНЬКА- КИЇВ" | V5: за період з | X5: 2017-05-01 | Z5: по | AA5: 31.05.2017р.
A7: Число місяця | B7: Компонентний склад, % мол. | N7: Фізико-хімічні показники газу обчислені на основі компонентного складу, 101,325 кПа | X7: Температура точки роси за вологою (Р = 3.92 МПа), °С | Y7: Температура точки роси за вуглеводнями, °С | Z7: Вміст сірководню, г/м3 | AA7: Вміст меркаптанової сірки, г/м3 | AB7: Вміст механічних домішок, г/м3
N8: Густина абсолютна, кг/м3,при 20 ºС, | O8: Температура вимірювання/згоряння при 20/25°С
B9: метан, С1 | C9: етан, С2 | D9: пропан, С3 | E9: ізо-бутан, і-С4 | F9: н-бутан, н-С4 | G9: нео-пентан, нео-С5 | H9: ізо-пентан, і-С5 | I9: н-пентан, н-С5 | J9: гексани та вищі, С6+ | K9: кисень, О2 | L9: азот, N2 | M9: діоксид вуглецю, CО2 | O9: Теплота згоряння нижча | R9: Теплота згоряння вища | U9: Число Воббе вище
O10: ккал/м3 | P10: МДж/м3 | Q10: кВт⋅год/м3 | R10: ккал/м3 | S10: МДж/м3 | T10: кВт⋅год/м3 | U10: ккал/м3 | V10: МДж/м3 | W10: кВт⋅год/м3
A11: 1 | O11: 8134.368283 | P11: 34.0586 | Q11: =P11/3.6 -> 9.460722222 | R11: 9014 | S11: 37.7378 | T11: =S11/3.6 -> 10.48272222 | AC11: =SUM(B11:M11)+$K$42+$N$42 -> 0
A12: 2 | O12: 8134.368283 | P12: 34.0586 | Q12: =P12/3.6 -> 9.460722222 | R12: 9014 | S12: 37.7378 | T12: =S12/3.6 -> 10.48272222 | AC12: 0
A13: 3 | O13: 8134.368283 | P13: 34.0586 | Q13: 9.460722222 | R13: 9014 | S13: 37.7378 | T13: 10.48272222 | AC13: 0 | AD13: =IF(AC13=100,"ОК"," ") -> 
A14: 4 | B14: 91.2197 | C14: 3.5237 | D14: 0.899 | E14: 0.1339 | F14: 0.2141 | G14: 0.005 | H14: 0.0705 | I14: 0.0602 | J14: 0.1618 | K14: 0.0032 | L14: 3.3451 | M14: 0.3637 | N14: 0.7344 | O14: 8167.741589 | P14: 34.1967 | Q14: 9.499083333 | R14: 9049.059075 | S14: 37.8866 | T14: 10.52405556 | U14: 11588.08216 | V14: 48.5193 | W14: 13.47693842 | X14: -5.6 | Y14: -8.5 | AC14: 99.9999 | AD14: =IF(AC14=100,"ОК"," ") -> 
A15: 5 | O15: 8167.741589 | P15: 34.1967 | Q15: 9.499083333 | R15: 9049.059075 | S15: 37.8866 | T15: 10.52405556 | AC15: 0
A16: 6 | O16: 8167.741589 | P16: 34.1967 | Q16: 9.499083333 | R16: 9049.059075 | S16: 37.8866 | T16: 10.52405556 | AC16: 0
A17: 7 | O17: 8167.741589 | P17: 34.1967 | Q17: 9.499083333 | R17: 9049.059075 | S17: 37.8866 | T17: 10.52405556 | AC17: 0
A18: 8 | O18: 8167.741589 | P18: 34.1967 | Q18: 9.499083333 | R18: 9049.059075 | S18: 37.8866 | T18: 10.52405556 | AC18: 0
A19: 9 | O19: 8167.741589 | P19: 34.1967 | Q19: 9.499083333 | R19: 9049.059075 | S19: 37.8866 | T19: 10.52405556 | AC19: 0
A20: 10 | O20: 8167.741589 | P20: 34.1967 | Q20: 9.499083333 | R20: 9049.059075 | S20: 37.8866 | T20: 10.52405556 | AC20: 0
A21: 11 | B21: 91.2683 | C21: 3.5023 | D21: 0.9063 | E21: 0.1331 | F21: 0.2061 | G21: 0.0048 | H21: 0.064 | I21: 0.0526 | J21: 0.087 | K21: 0.0033 | L21: 3.4251 | M21: 0.3471 | N21: 0.7319 | O21: 8133.968778 | P21: 34.0553 | Q21: 9.459805556 | R21: 9012.65896 | S21: 37.7342 | T21: 10.48172222 | U21: 11561.38046 | V21: 48.4075 | W21: 13.44588435 | X21: -3.3 | Y21: -0.8 | AC21: 100 | AD21: ОК
A22: 12 | O22: 8133.968778 | P22: 34.0553 | Q22: 9.459805556 | R22: 9012.65896 | S22: 37.7342 | T22: 10.48172222 | AC22: 0
A23: 13 | O23: 8133.968778 | P23: 34.0553 | Q23: 9.459805556 | R23: 9012.65896 | S23: 37.7342 | T23: 10.48172222 | AC23: 0
A24: 14 | O24: 8133.968778 | P24: 34.0553 | Q24: 9.459805556 | R24: 9012.65896 | S24: 37.7342 | T24: 10.48172222 | AC24: 0
A25: 15 | B25: 90.9892 | C25: 3.5362 | D25: 1.0541 | E25: 0.1531 | F25: 0.2547 | G25: 0.0049 | H25: 0.0843 | I25: 0.0824 | J25: 0.0668 | K25: 0.0029 | L25: 3.4105 | M25: 0.361 | N25: 0.7357 | O25: 8173.378352 | P25: 34.2203 | Q25: 9.505638889 | R25: 9054.886915 | S25: 37.911 | T25: 10.53083333 | U25: 11585.38333 | V25: 48.508 | W25: 13.47379968 | X25: -2.3 | Y25: -1.5 | Z25: <0,006 | AA25: <0,02 | AB25: від. | AC25: 100.0001
A26: 16 | O26: 8173.378352 | P26: 34.2203 | Q26: 9.505638889 | R26: 9054.886915 | S26: 37.911 | T26: 10.53083333 | AC26: 0
A27: 17 | O27: 8173.378352 | P27: 34.2203 | Q27: 9.505638889 | R27: 9054.886915 | S27: 37.911 | T27: 10.53083333 | AC27: 0
A28: 18 | O28: 8173.378352 | P28: 34.2203 | Q28: 9.505638889 | R28: 9054.886915 | S28: 37.911 | T28: 10.53083333 | AC28: 0
A29: 19 | O29: 8173.378352 | P29: 34.2203 | Q29: 9.505638889 | R29: 9054.886915 | S29: 37.911 | T29: 10.53083333 | AC29: 0
A30: 20 | O30: 8173.378352 | P30: 34.2203 | Q30: 9.505638889 | R30: 9054.886915 | S30: 37.911 | T30: 10.53083333 | AC30: 0 | AD30: =IF(AC30=100,"ОК"," ") -> 
A31: 21 | O31: 8173.378352 | P31: 34.2203 | Q31: 9.505638889 | R31: 9054.886915 | S31: 37.911 | T31: 10.53083333 | AC31: 0
A32: 22 | O32: 8173.378352 | P32: 34.2203 | Q32: 9.505638889 | R32: 9054.886915 | S32: 37.911 | T32: 10.53083333 | AC32: 0
A33: 23 | O33: 8173.378352 | P33: 34.2203 | Q33: 9.505638889 | R33: 9054.886915 | S33: 37.911 | T33: 10.53083333 | AC33: 0 | AD33: =IF(AC33=100,"ОК"," ") -> 
A34: 24 | O34: 8173.378352 | P34: 34.2203 | Q34: 9.505638889 | R34: 9054.886915 | S34: 37.911 | T34: 10.53083333 | AC34: 0
A35: 25 | B35: 91.1514 | C35: 3.5268 | D35: 0.9293 | E35: 0.1362 | F35: 0.2156 | G35: 0.005 | H35: 0.0686 | I35: 0.0564 | J35: 0.1026 | K35: 0.0345 | L35: 3.4197 | M35: 0.354 | N35: 0.7334 | O35: 8145.027343 | P35: 34.1016 | Q35: 9.472666667 | R35: 9024.386293 | S35: 37.7833 | T35: 10.49536111 | U35: 11564.12706 | V35: 48.419 | W35: 13.44907864 | X35: -5 | Y35: -8 | AC35: 100.0001
A36: 26 | O36: 8145.027343 | P36: 34.1016 | Q36: 9.472666667 | R36: 9024.386293 | S36: 37.7833 | T36: 10.49536111 | AC36: 0
A37: 27 | O37: 8145.027343 | P37: 34.1016 | Q37: 9.472666667 | R37: 9024.386293 | S37: 37.7833 | T37: 10.49536111 | AC37: 0
A38: 28 | O38: 8145.027343 | P38: 34.1016 | Q38: 9.472666667 | R38: 9024.386293 | S38: 37.7833 | T38: 10.49536111
A39: 29 | O39: 8145.027343 | P39: 34.1016 | Q39: 9.472666667 | R39: 9024.386293 | S39: 37.7833 | T39: 10.49536111
A40: 30 | O40: 8145.027343 | P40: 34.1016 | Q40: 9.472666667 | R40: 9024.386293 | S40: 37.7833 | T40: 10.49536111
A41: 31 | O41: 8145.027343 | P41: 34.1016 | Q41: 9.472666667 | R41: 9024.386293 | S41: 37.7833 | T41: 10.49536111
A42: Рівень одоризації відповідає чинним нормативним документам | O42: =SUMPRODUCT(O11:O41,' розрахунок'!D7:D37)/' розрахунок'!D38 -> 8157.131699 | P42: =SUMPRODUCT(P11:P41,' розрахунок'!D7:D37)/' розрахунок'!D38 -> 34.15240455 | Q42: =SUMPRODUCT(Q11:Q41,' розрахунок'!D7:D37)/' розрахунок'!D38 -> 9.48677904 | R42: =SUMPRODUCT(R11:R41,' розрахунок'!D7:D37)/' розрахунок'!D38 -> 9037.568964 | S42: =SUMPRODUCT(S11:S41,' розрахунок'!D7:D37)/' розрахунок'!D38 -> 37.83833718 | T42: =SUMPRODUCT(T11:T41,' розрахунок'!D7:D37)/' розрахунок'!D38 -> 10.51064922
H43: Середньозважене значення теплоти згоряння:
B46: Заступник начальника Диканського ЛВУМГ 31.05.2017р. | L46: Герасименко І.М. | Z46: =TODAY() -> 2017-06-01
B48: Завідувач лабораторії Диканського ЛВУМГ | L48: Горшковоз О.В. | Z48: =TODAY() -> 2017-06-01
B50: Начальник служби ГВМ та М Диканського ЛВУМГ | L50: Левадний С.А. | Z50: =TODAY() -> 2017-06-01

Sheet розрахунок
A2: Додаток до Паспорту фізико-хімічних показників природного газу по маршруту №95
A4: Число місяця | B4: Теплота згоряння вища, МДж/м3 | C4: Полтавська область | D4: Загальний обсяг газу, м3
C5: Обсяг газу переданого за добу, м3
C6: ГРС Степне
A7: 1 | B7: =паспорт!S11 -> 37.7378 | C7: 999.16 | D7: =SUM(C7:C7) -> 999.16
A8: 2 | B8: =паспорт!S12 -> 37.7378 | C8: 937.99 | D8: 937.99
A9: 3 | B9: =паспорт!S13 -> 37.7378 | C9: 920.47 | D9: 920.47
A10: 4 | B10: =паспорт!S14 -> 37.8866 | C10: 926.86 | D10: 926.86
A11: 5 | B11: =паспорт!S15 -> 37.8866 | C11: 969.73 | D11: 969.73
A12: 6 | B12: =паспорт!S16 -> 37.8866 | C12: 919.31 | D12: 919.31
A13: 7 | B13: =паспорт!S17 -> 37.8866 | C13: 927.25 | D13: 927.25
A14: 8 | B14: =паспорт!S18 -> 37.8866 | C14: 992.43 | D14: 992.43
A15: 9 | B15: =паспорт!S19 -> 37.8866 | C15: 976.16 | D15: 976.16
A16: 10 | B16: =паспорт!S20 -> 37.8866 | C16: 1231.47 | D16: 1231.47
A17: 11 | B17: =паспорт!S21 -> 37.7342 | C17: 1393.04 | D17: 1393.04
A18: 12 | B18: =паспорт!S22 -> 37.7342 | C18: 1723.46 | D18: 1723.46
A19: 13 | B19: =паспорт!S23 -> 37.7342 | C19: 2068.74 | D19: 2068.74
A20: 14 | B20: =паспорт!S24 -> 37.7342 | C20: 1851.3 | D20: 1851.3
A21: 15 | B21: =паспорт!S25 -> 37.911 | C21: 1403.61 | D21: 1403.61
A22: 16 | B22: =паспорт!S26 -> 37.911 | C22: 1111.29 | D22: 1111.29
A23: 17 | B23: =паспорт!S27 -> 37.911 | C23: 1222.93 | D23: 1222.93
A24: 18 | B24: =паспорт!S28 -> 37.911 | C24: 1629.12 | D24: 1629.12
A25: 19 | B25: =паспорт!S29 -> 37.911 | C25: 1779.08 | D25: 1779.08
A26: 20 | B26: =паспорт!S30 -> 37.911 | C26: 1939.42 | D26: 1939.42
A27: 21 | B27: =паспорт!S31 -> 37.911 | C27: 1661.39 | D27: 1661.39
A28: 22 | B28: =паспорт!S32 -> 37.911 | C28: 1319.36 | D28: 1319.36
A29: 23 | B29: =паспорт!S33 -> 37.911 | C29: 1039.03 | D29: 1039.03
A30: 24 | B30: =паспорт!S34 -> 37.911 | C30: 904.58 | D30: 904.58
A31: 25 | B31: =паспорт!S35 -> 37.7833 | C31: 910.91 | D31: 910.91
A32: 26 | B32: =паспорт!S36 -> 37.7833 | C32: 828.27 | D32: 828.27
A33: 27 | B33: =паспорт!S37 -> 37.7833 | C33: 902.1 | D33: =SUM(C33:C33) -> 902.1
A34: 28 | B34: =паспорт!S38 -> 37.7833 | C34: 898.75 | D34: 898.75
A35: 29 | B35: =паспорт!S39 -> 37.7833 | C35: 882.57 | D35: 882.57
A36: 30 | B36: =паспорт!S40 -> 37.7833 | C36: 822.27 | D36: 822.27
A37: 31 | B37: =паспорт!S41 -> 37.7833 | C37: 806.11 | D37: 806.11
A38: Загальний обсяг газу, м3 | C38: =SUM(C7:C37) -> 36898.16 | D38: =SUM(D7:D37) -> 36898.16
A39: Енергія, МДж | C39: =SUMPRODUCT(B7:B37,C7:C37) -> 1396165.019 | D39: =SUMPRODUCT(B7:B37,D7:D37) -> 1396165.019
A40: Теплота згоряння (середньозважене значення за місяць), МДж/м³ | C40: =C39/C38 -> 37.83833718 | D40: 37.83833718
A41: Теплота згоряння (середньозважене значення за місяць), ккал/м³ | C41: =C40*238.8459 -> 9037.531697 | D41: =D40*238.8459 -> 9037.531697
A42: Теплота згоряння (середньозважене значення за місяць), кВт*год./м³ | C42: =C40/3.6 -> 10.51064922 | D42: 10.51064922

Sheet додаток
A2: Додаток до Паспорту фізико-хімічних показників природного газу № | E2: 95
A4: Область | B4: ГРС, прямий споживач | C4: Cередньозважене значення вищої теплоти згоряння
C5: МДж/м³ | D5: ккал/м³ | E5: кВт*год./м³
A6: Полтавська область | B6: ГРС Степне | C6: =' розрахунок'!C40 -> 37.83833718 | D6: =' розрахунок'!C41 -> 9037.531697 | E6: =' розрахунок'!C42 -> 10.51064922
A7: Середньозважене значення вищої теплоти згоряння по маршруту №95 | C7: =' розрахунок'!D40 -> 37.83833718 | D7: =' розрахунок'!D41 -> 9037.531697 | E7: =' розрахунок'!D42 -> 10.51064922
A10: Заступник начальника Диканського ЛВУМГ | C10: Герасименко І.М. | E10: =TODAY() -> 2017-06-01
A12: Завідувач вимірювальної хіміко-аналітичної лабораторії лабораторії | C12: Горшковоз О.В. | E12: =TODAY() -> 2017-06-01
A14: Начальник службиГВ та М | C14: Левадний С.А. | E14: =TODAY() -> 2017-06-01

Sheet variablesList (hidden)
A1: 3 | B1: x:\gaysin | C1: 10, 11, 24, 25, 127, 128, 132, 180, 207, 215 | D1: x:\
B2: x:\Illinci
B3: x:\Talne
